{"text_format":"3","workbook":"xlsx","n_sheets":3,"sheets":["Resumen","Comprar un auto","Uso compartido del auto"],"not_rendered":{"charts":1,"defined_names":33},"read":"whole","date_system":"1900"}

{"sheet":"Resumen","index":0,"n_rows":16,"n_cols":4,"rows_kept":16}
[null,"Comprar un auto en comparación con uso compartido del auto"]
[null,"Viaje promedio"]
[null,"Promedio de viajes por día",2]
[null,"Tiempo promedio para cada viaje",20,"min(s)"]
[null,"Distancia promedio para cada viaje",{"v":10,"d":"10.00"},"kilómetros"]
[null,"Kilometraje anual",{"$f":"IFERROR(ViajesProPorDía*DistanciaProPorViaje*365,\"\")","v":{"v":7300,"d":"7,300"}},"kilómetros"]
[null,"Costo de tiempo"]
[null,"Tarifa por hora",{"v":20,"d":"$20.00"}]
[null,"Resumen de costos anual"]
[" ","Columna1","Comprar un auto","Uso compartido del auto"]
[null,"Costo de compra",{"$f":"CostoAnualDeCompra","v":{"v":7187.314844765674,"d":"$7,187.31"}},"-"]
[null,"Costos de uso del auto",{"$f":"CostoAnualDeUso","v":{"v":2990,"d":"$2,990.00"}},"-"]
[null,"Costos de combustible",{"$f":"CostoAnualDeCombustible","v":{"v":617.6923076923076,"d":"$617.69"}},"-"]
[null,"Costo de tarifas","-",{"$f":"CostoAnualDeTarifa","v":{"v":12340.65,"d":"$12,340.65"}}]
[null,"Costo de tiempo",{"$f":"CostoAnualDeTiempo_ComprarAuto","v":{"v":7300,"d":"$7,300.00"}},{"$f":"CostoAnualDeTiempo_CompartirAuto","v":{"v":2190,"d":"$2,190.00"}}]
[null,"Costo total anual",{"$f":"SUBTOTAL(109,Tabla7[Comprar un auto])","v":{"v":18095.007152457983,"d":"$18,095.01"}},{"$f":"SUBTOTAL(109,Tabla7[Uso compartido del auto])","v":{"v":14530.65,"d":"$14,530.65"}}]

{"sheet":"Comprar un auto","index":1,"n_rows":28,"n_cols":4,"rows_kept":28}
[null,"Comprar un auto"]
[null,"Costo de compra"]
[]
[null,"Precio del auto",{"v":30000,"d":"$30,000.00"}]
[null,"Impuesto sobre las ventas",{"v":0.0575,"d":"$0.06"}]
[null,"Tarifas de compra",{"v":220,"d":"$220.00"}]
[null,"Pago inicial",{"v":3000,"d":"$3,000.00"},"meses"]
[null,"Plazo del préstamo",{"v":60,"d":"$60.00"}]
[null,"Tasa de interés",{"v":0.045,"d":"$0.05"}]
[null,"Costo de compra anual",{"$f":"IFERROR(-PMT(TasaDeIntereses,PlazoDelPréstamo/12,PrecioDelAuto*(1+ImpuestoSobreLasVentas)-PagoInicial)+(TarifasDeCompra+PagoInicial)/(PlazoDelPréstamo/12),\"\")","v":{"v":7187.314844765674,"d":"$7,187.31"}}]
[null,{"$f":"IF(CostoAnualDeCompra=\"\",\"\",\"Para un período de préstamo de \" & TEXT(PlazoDelPréstamo/12,\"0.0\") & \" años\")","v":"Para un período de préstamo de 5.0 años"}]
[null,"Costos de uso del auto"]
[null,"Mantenimiento y reparaciones",{"v":1000,"d":"$1,000.00"},"por año"]
[null,"Seguro",{"v":815,"d":"$815.00"},"por año"]
[null,"Registros e impuestos",{"v":75,"d":"$75.00"},"por año"]
[null,"Estacionamiento",{"v":500,"d":"$500.00"},"por año"]
[null,"Impuesto sobre las propiedades para el garaje",{"v":500,"d":"$500.00"},"por año"]
[null,"Otros gastos de garaje",{"v":100,"d":"$100.00"},"por año"]
[null,"Coste uso anual",{"$f":"SUBTOTAL(109,Tabla3[Columna3])","v":{"v":2990,"d":"$2,990.00"}}]
[null,"Costos de combustible"]
[null,"Costo de combustible",{"v":3.3,"d":"$3.30"},"por litro"]
[null,"Eficiencia del combustible",39,"(km/l)"]
[null,"Costo de combustible anual",{"$f":"IFERROR(KilometrajeTotal/EficienciaDeCombustible*CostoDeCombustible,\"\")","v":{"v":617.6923076923076,"d":"$617.69"}}]
[null,{"$f":"IF(CostoAnualDeCombustible=\"\",\"\",\"Según un kilometraje total anual de \" & TEXT(KilometrajeTotal,\"#,##0\") & \" km\")","v":"Según un kilometraje total anual de 7,300 km"}]
[null,"Costo de tiempo"]
[null,"Tiempo de estacionamiento promedio",10,"Min."]
[null,"Costo de tiempo anual",{"$f":"IFERROR((TiempoProPorViaje+TiempoProDeEstacionamiento)*ViajesProPorDía/60*TarifaPorHora*365,\"\")","v":{"v":7300,"d":"$7,300.00"}}]
[null,{"$f":"IF(CostoAnualDeTiempo_ComprarAuto=\"\",\"\",\"Si se realizan \" & ViajesProPorDía & \" viajes por día, cada uno de \" & TiempoProPorViaje + TiempoProDeEstacionamiento & \" minutos y una tarifa de \" & TEXT(TarifaPorHora,\"$#,##0.00\") & \" por hora\")","v":"Si se realizan 2 viajes por día, cada uno de 30 minutos y una tarifa de $20.00 por hora"}]

{"sheet":"Uso compartido del auto","index":2,"n_rows":14,"n_cols":4,"rows_kept":14}
[null,"Uso compartido del auto"]
[null,"Tarifa de uso compartido del auto"]
[null,"Tarifa básica",{"v":2.3,"d":"$2.30"},"por viaje"]
[null,"Tarifa por distancia",{"v":1,"d":"$1.00"},"por kilómetro"]
[null,"Tarifas por tiempo",{"v":0.12,"d":"$0.12"},"por minuto"]
[null,"Multiplicador de sobrecarga promedio",{"v":2.5,"d":"2.50"}]
[null,"Porcentaje de atracciones durante la sobrecarga",{"v":0.1,"d":"10%"}]
[null,"Costo anual de la tarifa",{"$f":"IFERROR((TarifaBase+TarifaPorDistancia*DistanciaProPorViaje+TarifaPorTiempo*TiempoProPorViaje)*ViajesProPorDía*365*((1-PorcentajeDeViajesDurantePico)+MultiplicadorProDePico*PorcentajeDeViajesDurantePico),\"\")","v":{"v":12340.65,"d":"$12,340.65"}}]
[null,{"$f":"IF(CostoAnualDeTarifa=\"\",\"\",\"Si se realizan \" & ViajesProPorDía & \" viajes por día, cada uno de \" & TiempoProPorViaje & \" minutos y \" & TiempoProDeEstacionamiento & \" km\")","v":"Si se realizan 2 viajes por día, cada uno de 20 minutos y 10 km"}]
[null,"Costo de tiempo"]
[null,"Tiempo de espera medio por viaje",{"v":5,"d":"$5.00"},"Min."]
[null,"Tiempo productivo durante el viaje",{"v":0.8,"d":"$0.80"}]
[null,"Costo de tiempo anual",{"$f":"IFERROR((TiempoProDeEspera+TiempoProPorViaje*(1-PorcetajeDeProductividad))*ViajesProPorDía/60*TarifaPorHora*365,\"\")","v":{"v":2190,"d":"$2,190.00"}}]
[null,{"$f":"IF(CostoAnualDeTiempo_CompartirAuto=\"\",\"\",\"Si se realizan \" & ViajesProPorDía & \" viajes por día, cada uno de \" & TiempoProPorViaje & \" minutos y una tarifa de \" & TEXT(TarifaPorHora,\"$#,##0.00\") & \" por hora\")","v":"Si se realizan 2 viajes por día, cada uno de 20 minutos y una tarifa de $20.00 por hora"}]